lending/lending_fUSD_20250425
["ID","MTS","AMOUNT","RATE_DAILY","PERIOD"]
[358981191,1745601043473,-500.0,0.00030136,2]
[358981192,1745601043482,-500.0,0.00030136,2]
[358981193,1745601043492,-892.74,0.00030136,2]
[358981195,1745601043503,-500.0,0.00030136,2]
[358981197,1745601043512,-992.42,0.00030136,2]
[358981199,1745601043522,-500.0,0.00030136,2]
[358981201,1745601043533,-500.0,0.00030136,2]
[358981202,1745601043543,-1065.93,0.00030136,2]
[358981203,1745601043555,-500.0,0.00030136,2]
[358981204,1745601043565,-500.0,0.00030136,2]
[358981205,1745601043574,-500.0,0.00030136,2]
[358981206,1745601043584,-996.56,0.00030136,2]
[358981207,1745601043593,-500.0,0.00030136,2]
[358981208,1745601043603,-836.29,0.00030136,2]
[358981209,1745601043612,-500.0,0.00030136,2]
[358981210,1745601043622,-697.21,0.00030136,2]
[358981211,1745601043631,-500.0,0.00030136,2]
[358981212,1745601043641,-500.0,0.00030136,2]
[358981213,1745601043650,-500.0,0.00030136,2]
[358981214,1745601043660,-500.0,0.00030136,2]
[358981215,1745601043670,-537.66,0.00030136,2]
[358981216,1745601043680,-500.0,0.00030136,2]
[358981217,1745601043689,-500.0,0.00030136,2]
[358981218,1745601043699,-500.0,0.00030136,2]
[358981219,1745601043708,-840.45,0.00030136,2]
[358981220,1745601043717,-500.0,0.00030136,2]
[358981221,1745601043727,-500.0,0.00030136,2]
[358981222,1745601043737,-500.0,0.00030136,2]
[358981223,1745601043748,-567.72,0.00030136,2]
[358981224,1745601043757,-500.0,0.00030136,2]
[358981225,1745601043767,-856.73,0.00030136,2]
[358981226,1745601043776,-500.0,0.00030136,2]
[358981227,1745601043785,-500.0,0.00030136,2]
[358981228,1745601043795,-500.0,0.00030136,2]
[358981229,1745601043804,-500.0,0.00030136,2]
[358981230,1745601043813,-376.02167723,0.00030136,2]
[358981231,1745601043823,-500.0,0.00030136,2]
[358981232,1745601043832,-500.0,0.00030136,2]
[358981233,1745601043842,-500.0,0.00030136,2]
[358981234,1745601043851,-500.0,0.00030136,2]
[358981235,1745601043861,-500.0,0.00030136,2]
[358981236,1745601043872,-500.0,0.00030136,2]
[358981237,1745601043881,-1077.86,0.00030136,2]
[358981238,1745601043890,-500.0,0.00030136,2]
[358981239,1745601043900,-500.0,0.00030136,2]
[358981240,1745601043909,-1087.13,0.00030136,2]
[358981241,1745601043919,-1029.39,0.00030136,2]
[358981242,1745601043929,-500.0,0.00030136,2]
[358981243,1745601043938,-500.0,0.00030136,2]
[358981244,1745601043948,-500.0,0.00030136,2]
[358981245,1745601043958,-500.0,0.00030136,2]
[358981246,1745601043967,-500.0,0.00030136,2]
[358981247,1745601043977,-500.0,0.00030136,2]
[358981248,1745601043987,-202.23648594,0.00030136,2]
[358981249,1745601043997,-500.0,0.00030136,2]
[358981250,1745601044007,-644.11,0.00030136,2]
[358981251,1745601044016,-500.0,0.00030136,2]
[358981252,1745601044026,-500.0,0.00030136,2]
[358981253,1745601044035,-496.8700802,0.00030136,2]
[358981254,1745601044050,-3.1299198,0.00030136,2]
[358981255,1745601044059,-663.46,0.00030136,2]
[358981256,1745601044069,-636.58,0.00030136,2]
[358981257,1745601044079,-382.78730263,0.00030136,2]
[358981258,1745601044090,-117.21269737,0.00030136,2]
[358981259,1745601044099,-500.0,0.00030136,2]
[358981260,1745601044108,-513.63574784,0.00030136,2]
[358981261,1745601044118,-500.0,0.00030136,2]
[358981262,1745601044128,-29.85155479,0.00030136,2]
[358981263,1745601044141,-470.14844521,0.00030136,2]
[358981264,1745601044153,-740.87,0.00030136,2]
[358981265,1745601044168,-500.0,0.00030136,2]
[358981266,1745601044177,-500.0,0.00030136,2]
[358981267,1745601044186,-500.0,0.00030136,2]
[358981268,1745601044196,-500.0,0.00030136,2]
[358981269,1745601044207,-633.79,0.00030136,2]
[358981270,1745601044218,-500.0,0.00030136,2]
[358981271,1745601044227,-538.60393484,0.00030136,2]
[358981272,1745601044236,-500.0,0.00030136,2]
[358981273,1745601044248,-500.0,0.00030136,2]
[358981274,1745601044259,-582.193544,0.00030136,2]
[358981275,1745601044269,-500.0,0.00030136,2]
[358981276,1745601044278,-500.0,0.00030136,2]
[358981277,1745601044287,-500.0,0.00030136,2]
[358981278,1745601044297,-118.9910098,0.00030136,2]
[358981280,1745601045312,-381.0089902,0.00030136,2]
[358981281,1745601045322,-500.0,0.00030136,2]
[358981282,1745601045334,-500.0,0.00030136,2]
[358981283,1745601045345,-529.4329965,0.00030136,2]
[358981284,1745601045355,-500.0,0.00030136,2]
[358981285,1745601045367,-1268.75,0.00030136,2]
[358981286,1745601045379,-500.0,0.00030136,2]
[358981287,1745601045390,-504.27516635,0.00030136,2]
[358981288,1745601045399,-670.26,0.00030136,2]
[358981289,1745601045410,-500.0,0.00030136,2]
[358981290,1745601045420,-500.0,0.00030136,2]
[358981291,1745601045431,-500.0,0.00030136,2]
[358981292,1745601045441,-500.0,0.00030136,2]
[358981293,1745601045452,-500.0,0.00030136,2]
[358981294,1745601045463,-500.0,0.00030136,2]
[358981295,1745601045474,-967.36,0.00030136,2]
[358981296,1745601045487,-500.0,0.00030136,2]
[358981297,1745601045499,-673.77,0.00030136,2]
[358981298,1745601045512,-500.0,0.00030136,2]
[358981299,1745601045523,-500.0,0.00030136,2]
[358981300,1745601045534,-500.0,0.00030136,2]
[358981301,1745601045546,-500.0,0.00030136,2]
[358981302,1745601045558,-500.0,0.00030136,2]
[358981303,1745601045568,-500.0,0.00030136,2]
[358981304,1745601045579,-500.0,0.00030136,2]
[358981305,1745601045590,-500.0,0.00030136,2]
[358981306,1745601045600,-500.0,0.00030136,2]
[358981307,1745601045611,-500.0,0.00030136,2]
[358981308,1745601045623,-790.25,0.00030136,2]
[358981309,1745601045634,-544.17138551,0.00030136,2]
[358981310,1745601045644,-500.0,0.00030136,2]
[358981311,1745601045654,-500.0,0.00030136,2]
[358981312,1745601045664,-500.0,0.00030136,2]
[358981313,1745601045676,-500.0,0.00030136,2]
[358981314,1745601045686,-500.0,0.00030136,2]
[358981315,1745601045697,-500.0,0.00030136,2]
[358981316,1745601045708,-923.76,0.00030136,2]
[358981317,1745601045718,-500.0,0.00030136,2]
[358981318,1745601045729,-302.43786364,0.00030136,2]
[358981319,1745601045740,-1174.49,0.00030136,2]
[358981320,1745601045751,-500.0,0.00030136,2]
[358981321,1745601045762,-500.0,0.00030136,2]
[358981322,1745601045772,-500.0,0.00030136,2]
[358981323,1745601045782,-557.17458355,0.00030136,2]
[358981325,1745601045792,-500.0,0.00030136,2]
[358981326,1745601045802,-500.0,0.00030136,2]
[358981327,1745601045812,-500.0,0.00030136,2]
[358981328,1745601045823,-500.0,0.00030136,2]
[358981329,1745601045833,-1092.71,0.00030136,2]
[358981330,1745601045844,-650.78,0.00030136,2]
[358981331,1745601045854,-500.0,0.00030136,2]
[358981332,1745601045864,-557.37,0.00030136,2]
[358981333,1745601045876,-500.0,0.00030136,2]
[358981334,1745601045887,-500.0,0.00030136,2]
[358981335,1745601045898,-500.0,0.00030136,2]
[358981336,1745601045908,-785.45,0.00030136,2]
[358981337,1745601045918,-500.0,0.00030136,2]
[358981338,1745601045929,-500.0,0.00030136,2]
[358981339,1745601045940,-594.25,0.00030136,2]
[358981340,1745601045952,-500.0,0.00030136,2]
[358981341,1745601045962,-500.0,0.00030136,2]
[358981342,1745601045973,-500.0,0.00030136,2]
[358981343,1745601045984,-500.0,0.00030136,2]
[358981344,1745601045997,-524.05599487,0.00030136,2]
[358981345,1745601046008,-500.0,0.00030136,2]
[358981346,1745601046018,-924.65,0.00030136,2]
[358981347,1745601046029,-500.0,0.00030136,2]
[358981348,1745601046040,-520.78559026,0.00030136,2]
[358981349,1745601046050,-500.0,0.00030136,2]
[358981350,1745601046062,-500.0,0.00030136,2]
[358981351,1745601046073,-500.0,0.00030136,2]
[358981352,1745601046084,-957.78,0.00030136,2]
[358981353,1745601046094,-500.0,0.00030136,2]
[358981354,1745601046107,-500.0,0.00030136,2]
[358981355,1745601046117,-500.0,0.00030136,2]
[358981356,1745601046128,-500.0,0.00030136,2]
[358981357,1745601046137,-500.0,0.00030136,2]
[358981358,1745601046147,-500.0,0.00030136,2]
[358981359,1745601046159,-1371.5,0.00030136,2]
[358981360,1745601046174,-500.0,0.00030136,2]
[358981361,1745601046184,-677.47,0.00030136,2]
[358981362,1745601046194,-500.0,0.00030136,2]
[358981363,1745601046205,-500.0,0.00030136,2]
[358981364,1745601046219,-500.0,0.00030136,2]
[358981365,1745601046230,-461.63209462,0.00030136,2]
[358981366,1745601046241,-500.0,0.00030136,2]
[358981367,1745601046252,-500.0,0.00030136,2]
[358981368,1745601046263,-500.0,0.00030136,2]
[358981369,1745601046276,-500.0,0.00030136,2]
[358981370,1745601046287,-928.04,0.00030136,2]
[358981371,1745601046297,-500.0,0.00030136,2]
[358981372,1745601046310,-500.0,0.00030136,2]
[358981373,1745601046322,-500.0,0.00030136,2]
[358981374,1745601046333,-520.45,0.00030136,2]
[358981375,1745601046342,-222.49243553,0.00030136,2]
[358981376,1745601046352,-500.0,0.00030136,2]
[358981377,1745601046364,-773.16,0.00030136,2]
[358981378,1745601046374,-500.0,0.00030136,2]
[358981379,1745601046383,-935.85,0.00030136,2]
[358981380,1745601046393,-500.0,0.00030136,2]
[358981381,1745601046402,-500.0,0.00030136,2]
[358981382,1745601046413,-1119.43,0.00030136,2]
[358981383,1745601046423,-621.68,0.00030136,2]
[358981384,1745601046433,-539.07,0.00030136,2]
[358981385,1745601046443,-500.0,0.00030136,2]
[358981386,1745601046453,-876.72,0.00030136,2]
[358981387,1745601046463,-500.0,0.00030136,2]
[358981388,1745601046473,-500.0,0.00030136,2]
[358981389,1745601046483,-500.0,0.00030136,2]
[358981390,1745601046495,-500.0,0.00030136,2]
[358981391,1745601046505,-16631.81,0.00030136,2]
[358981392,1745601046515,-940.97,0.00030136,2]
[358981393,1745601046525,-698.43,0.00030136,2]
[358981394,1745601046535,-500.0,0.00030136,2]
[358981395,1745601046545,-500.0,0.00030136,2]
[358981396,1745601046555,-500.0,0.00030136,2]
[358981397,1745601046565,-500.0,0.00030136,2]
[358981398,1745601046575,-587.58,0.00030136,2]
[358981399,1745601046585,-500.0,0.00030136,2]
[358981400,1745601046595,-500.0,0.00030136,2]
[358981401,1745601046606,-500.0,0.00030136,2]
[358981402,1745601046615,-829.76,0.00030136,2]
[358981403,1745601046625,-500.0,0.00030136,2]
[358981404,1745601046636,-8672.03,0.00030136,2]
[358981405,1745601046646,-500.0,0.00030136,2]
[358981406,1745601046657,-500.0,0.00030136,2]
[358981407,1745601046667,-500.0,0.00030136,2]
[358981408,1745601046678,-600.41,0.00030136,2]
[358981409,1745601046688,-500.0,0.00030136,2]
[358981410,1745601046699,-756.44,0.00030136,2]
[358981411,1745601046709,-963.49,0.00030136,2]
[358981412,1745601046719,-500.0,0.00030136,2]
[358981413,1745601046729,-500.0,0.00030136,2]
[358981414,1745601046740,-500.0,0.00030136,2]
[358981415,1745601046750,-500.0,0.00030136,2]
[358981416,1745601046761,-543.25799035,0.00030136,2]
[358981417,1745601046771,-500.0,0.00030136,2]
[358981418,1745601046781,-513.38316402,0.00030136,2]
[358981419,1745601046791,-500.0,0.00030136,2]
[358981420,1745601046802,-500.0,0.00030136,2]
[358981421,1745601046812,-825.01,0.00030136,2]
[358981422,1745601046822,-3503.98,0.00030136,2]
[358981423,1745601046833,-554.80912551,0.00030136,2]
[358981424,1745601046843,-500.0,0.00030136,2]
[358981425,1745601046853,-500.0,0.00030136,2]
[358981426,1745601046864,-1000.0,0.00030136,2]
[358981427,1745601046874,-515.2780227,0.00030136,2]
[358981428,1745601046885,-911.62,0.00030136,2]
[358981429,1745601046895,-500.0,0.00030136,2]
[358981430,1745601046905,-500.0,0.00030136,2]
[358981431,1745601046916,-500.0,0.00030136,2]
[358981432,1745601046928,-500.0,0.00030136,2]
[358981433,1745601046939,-537.02131556,0.00030136,2]
[358981434,1745601046949,-641.57,0.00030136,2]
[358981435,1745601046959,-523.18,0.00030136,2]
[358981436,1745601046970,-500.0,0.00030136,2]
[358981437,1745601046980,-500.0,0.00030136,2]
[358981438,1745601046991,-500.0,0.00030136,2]
[358981439,1745601047002,-500.0,0.00030136,2]
[358981440,1745601047012,-500.0,0.00030136,2]
[358981441,1745601047023,-500.0,0.00030136,2]
[358981442,1745601047033,-500.0,0.00030136,2]
[358981443,1745601047046,-500.0,0.00030136,2]
[358981444,1745601047057,-785.3,0.00030136,2]
[358981445,1745601047073,-500.0,0.00030136,2]
[358981446,1745601047083,-1189.55,0.00030136,2]
[358981447,1745601047094,-254.51467933,0.00030136,2]
[358981448,1745601047104,-500.0,0.00030136,2]
[358981449,1745601047115,-522.58286929,0.00030136,2]
[358981450,1745601047421,-500.0,0.00030136,2]
[358981451,1745601047432,-500.0,0.00030136,2]
[358981452,1745601047441,-500.0,0.00030136,2]
[358981453,1745601047451,-500.0,0.00030136,2]
[358981454,1745601047460,-602.18,0.00030136,2]
[358981455,1745601047470,-3903.71,0.00030136,2]
[358981456,1745601047480,-5369.71,0.00030136,2]
[358981457,1745601047490,-500.0,0.00030136,2]
[358981458,1745601047499,-500.0,0.00030136,2]
[358981459,1745601047509,-500.0,0.00030136,2]
[358981460,1745601047518,-500.0,0.00030136,2]
[358981461,1745601047529,-514.06,0.00030136,2]
[358981462,1745601047538,-670.6,0.00030136,2]
[358981463,1745601047547,-500.0,0.00030136,2]
[358981464,1745601047558,-500.0,0.00030136,2]
[358981465,1745601047568,-611.88260411,0.00030136,2]
[358981466,1745601047578,-500.0,0.00030136,2]
[358981467,1745601047587,-500.0,0.00030136,2]
[358981468,1745601047597,-1207.02,0.00030136,2]
[358981469,1745601047606,-434.35400699,0.00030136,2]
[358981470,1745601047633,-65.64599301,0.00030136,2]
[358981471,1745601047642,-509.39,0.00030136,2]
[358981472,1745601047652,-500.0,0.00030136,2]
[358981473,1745601047661,-500.0,0.00030136,2]
[358981474,1745601047673,-1000.0,0.00030136,2]
[358981475,1745601047682,-670.48070039,0.00030136,2]
[358981476,1745601047780,-17.64929961,0.00030136,2]
[358981477,1745601047791,-544.76613967,0.00030136,2]
[358981478,1745601047802,-318.58381159,0.00030136,2]
[358981479,1745601047852,-181.41618841,0.00030136,2]
[358981480,1745601047861,-500.0,0.00030136,2]
[358981481,1745601047871,-500.0,0.00030136,2]
[358981482,1745601047882,-792.09,0.00030136,2]
[358981483,1745601047892,-838.46,0.00030136,2]
[358981484,1745601047903,-500.0,0.00030136,2]
[358981485,1745601047913,-29198.19348027,0.00030136,2]
[358981486,1745601047956,-962.65033312,0.00030136,2]
[358981487,1745601048429,-411.49466743,0.00030031,2]
[358981488,1745601048439,-2559.90642664,0.00030136,2]
[358981489,1745601048455,-97851.96314833,0.00030136,2]
[358981490,1745601048466,-7855.19516512,0.00030136,2]
[358981491,1745601048482,-6053.86122375,0.00030136,2]
[358981492,1745601048906,-250.0,0.00026425,2]
[358981493,1745601048916,-2027.23637983,0.00030136,2]
[358981494,1745601048928,-8524.92475953,0.00030136,2]
[358981495,1745601048940,-800.0,0.00030136,2]
[358981496,1745601048958,-2087.75999976,0.00030136,2]
[358981497,1745601048983,-109372.39773949,0.00030136,2]
[358981498,1745601048997,-29773.55134416,0.00030136,2]
[358981499,1745601049007,-600.2,0.00030136,2]
[358981500,1745601049017,-1001.58,0.00030136,2]
[358981501,1745601049027,-500.0,0.00030136,2]
[358981502,1745601049036,-500.0,0.00030136,2]
[358981503,1745601049046,-500.0,0.00030136,2]
[358981504,1745601049055,-558.22,0.00030136,2]
[358981505,1745601049065,-500.0,0.00030136,2]
[358981506,1745601049075,-977.4,0.00030136,2]
[358981507,1745601049085,-500.0,0.00030136,2]
[358981508,1745601049094,-500.0,0.00030136,2]
[358981509,1745601049104,-500.0,0.00030136,2]
[358981510,1745601049113,-906.94,0.00030136,2]
[358981511,1745601049123,-500.0,0.00030136,2]
[358981512,1745601049133,-500.0,0.00030136,2]
[358981513,1745601049143,-500.0,0.00030136,2]
[358981514,1745601049152,-500.0,0.00030136,2]
[358981515,1745601049162,-500.0,0.00030136,2]
[358981516,1745601049176,-749.06,0.00030136,2]
[358981517,1745601049185,-774.53,0.00030136,2]
[358981518,1745601049195,-804.41,0.00030136,2]
[358981519,1745601049204,-500.0,0.00030136,2]
[358981520,1745601049214,-500.0,0.00030136,2]
[358981521,1745601049223,-553.21,0.00030136,2]
[358981522,1745601049233,-156.13934076,0.00030136,2]
[358981523,1745601049243,-570.04,0.00030136,2]
[358981524,1745601049253,-837.53,0.00030136,2]
[358981525,1745601049263,-500.0,0.00030136,2]
[358981526,1745601049272,-786.12,0.00030136,2]
[358981527,1745601049282,-500.0,0.00030136,2]
[358981528,1745601049292,-500.0,0.00030136,2]
[358981529,1745601049303,-500.0,0.00030136,2]
[358981530,1745601049313,-500.0,0.00030136,2]
[358981531,1745601049322,-710.27,0.00030136,2]
[358981532,1745601049332,-500.0,0.00030136,2]
[358981533,1745601049342,-534.91,0.00030136,2]
[358981534,1745601049352,-500.0,0.00030136,2]
[358981535,1745601049362,-681.94,0.00030136,2]
[358981536,1745601049372,-500.0,0.00030136,2]
[358981537,1745601049385,-500.0,0.00030136,2]
[358981538,1745601049395,-500.0,0.00030136,2]
[358981539,1745601049405,-500.0,0.00030136,2]
[358981540,1745601049415,-533.63,0.00030136,2]
[358981541,1745601049424,-500.0,0.00030136,2]
[358981542,1745601049434,-1883.09,0.00030136,2]
[358981543,1745601049443,-778.36,0.00030136,2]
[358981544,1745601049452,-500.0,0.00030136,2]
[358981545,1745601049462,-500.0,0.00030136,2]
[358981546,1745601049471,-500.0,0.00030136,2]
[358981547,1745601049482,-500.0,0.00030136,2]
[358981548,1745601049492,-500.0,0.00030136,2]
[358981549,1745601049502,-593.24,0.00030136,2]
[358981550,1745601049512,-911.85,0.00030136,2]
[358981551,1745601049523,-500.0,0.00030136,2]
[358981552,1745601049532,-509.3990217,0.00030136,2]
[358981553,1745601049542,-553.09763497,0.00030136,2]
[358981554,1745601049552,-740.59,0.00030136,2]
[358981555,1745601049562,-500.0,0.00030136,2]
[358981556,1745601049572,-1037.17,0.00030136,2]
[358981557,1745601049582,-1282.96,0.00030136,2]
[358981558,1745601049592,-4532.85,0.00030136,2]
[358981559,1745601049602,-500.0,0.00030136,2]
[358981560,1745601049611,-891.0,0.00030136,2]
[358981561,1745601049621,-500.0,0.00030136,2]
[358981562,1745601049631,-781.48,0.00030136,2]
[358981563,1745601049641,-500.0,0.00030136,2]
[358981564,1745601049650,-500.0,0.00030136,2]
[358981565,1745601049660,-849.63,0.00030136,2]
[358981566,1745601049670,-500.0,0.00030136,2]
[358981567,1745601049679,-500.0,0.00030136,2]
[358981568,1745601049689,-500.0,0.00030136,2]
[358981569,1745601049698,-513.73,0.00030136,2]
[358981570,1745601049708,-865.31,0.00030136,2]
[358981571,1745601049718,-5833.33,0.00030136,2]
[358981572,1745601049728,-500.0,0.00030136,2]
[358981573,1745601049737,-833.23,0.00030136,2]
[358981574,1745601049747,-500.0,0.00030136,2]
[358981575,1745601049757,-500.0,0.00030136,2]
[358981576,1745601049766,-500.0,0.00030136,2]
[358981577,1745601049776,-500.0,0.00030136,2]
[358981578,1745601049786,-625.28,0.00030136,2]
[358981579,1745601049795,-500.0,0.00030136,2]
[358981580,1745601049805,-1038.77,0.00030136,2]
[358981581,1745601049815,-500.0,0.00030136,2]
[358981582,1745601049824,-500.0,0.00030136,2]
[358981583,1745601049833,-500.0,0.00030136,2]
[358981584,1745601049842,-1260.11,0.00030136,2]
[358981585,1745601049852,-862.47,0.00030136,2]
[358981586,1745601049862,-500.0,0.00030136,2]
[358981587,1745601049871,-500.0,0.00030136,2]
[358981588,1745601049880,-791.11,0.00030136,2]
[358981589,1745601049891,-500.0,0.00030136,2]
[358981590,1745601049901,-500.0,0.00030136,2]
[358981591,1745601049912,-500.0,0.00030136,2]
[358981592,1745601049922,-586.19,0.00030136,2]
[358981593,1745601049933,-500.0,0.00030136,2]
[358981594,1745601049944,-500.0,0.00030136,2]
[358981595,1745601049954,-500.0,0.00030136,2]
[358981596,1745601049964,-500.0,0.00030136,2]
[358981597,1745601049975,-971.72,0.00030136,2]
[358981598,1745601049986,-1161.27,0.00030136,2]
[358981599,1745601049996,-500.56,0.00030136,2]
[358981600,1745601050006,-525.37298575,0.00030136,2]
[358981601,1745601050017,-720.85,0.00030136,2]
[358981602,1745601050027,-819.29,0.00030136,2]
[358981603,1745601050039,-500.0,0.00030136,2]
[358981604,1745601050050,-500.0,0.00030136,2]
[358981605,1745601050059,-500.0,0.00030136,2]
[358981606,1745601050068,-975.39,0.00030136,2]
[358981607,1745601050078,-500.0,0.00030136,2]
[358981608,1745601050087,-500.0,0.00030136,2]
[358981609,1745601050097,-500.0,0.00030136,2]
[358981610,1745601050107,-500.0,0.00030136,2]
[358981611,1745601050116,-629.59,0.00030136,2]
[358981612,1745601050126,-564.15497355,0.00030136,2]
[358981613,1745601050136,-1184.67,0.00030136,2]
[358981614,1745601050146,-929.58,0.00030136,2]
[358981615,1745601050156,-973.77,0.00030136,2]
[358981616,1745601050173,-960.94,0.00030136,2]
[358981617,1745601050183,-704.36,0.00030136,2]
[358981618,1745601050193,-1791.43,0.00030136,2]
[358981619,1745601050203,-1056.34,0.00030136,2]
[358981620,1745601050213,-979.83,0.00030136,2]
[358981621,1745601050223,-363.00050792,0.00030136,2]
[358981622,1745601050234,-500.0,0.00030136,2]
[358981623,1745601050245,-500.0,0.00030136,2]
[358981624,1745601050255,-500.0,0.00030136,2]
[358981625,1745601050264,-974.45,0.00030136,2]
[358981626,1745601050274,-1659.27,0.00030136,2]
[358981627,1745601050284,-500.0,0.00030136,2]
[358981628,1745601050293,-791.59,0.00030136,2]
[358981629,1745601050303,-500.0,0.00030136,2]
[358981630,1745601050313,-1023.24,0.00030136,2]
[358981631,1745601050322,-500.0,0.00030136,2]
[358981632,1745601050334,-812.45,0.00030136,2]
[358981633,1745601050344,-500.0,0.00030136,2]
[358981634,1745601050354,-500.0,0.00030136,2]
[358981635,1745601050364,-655.75,0.00030136,2]
[358981636,1745601050375,-1499.81,0.00030136,2]
[358981637,1745601050385,-500.0,0.00030136,2]
[358981638,1745601050396,-327.86268946,0.00030136,2]
[358981639,1745601050407,-500.0,0.00030136,2]
[358981640,1745601050417,-500.0,0.00030136,2]
[358981641,1745601050427,-709.74,0.00030136,2]
[358981642,1745601050437,-500.0,0.00030136,2]
[358981643,1745601050448,-823.02,0.00030136,2]
[358981644,1745601050458,-500.0,0.00030136,2]
[358981645,1745601050468,-1652.43,0.00030136,2]
[358981646,1745601050478,-712.08,0.00030136,2]
[358981647,1745601050489,-500.0,0.00030136,2]
[358981648,1745601050500,-500.0,0.00030136,2]
[358981649,1745601050510,-619.2,0.00030136,2]
[358981650,1745601050519,-996.38,0.00030136,2]
[358981651,1745601050529,-500.0,0.00030136,2]
[358981652,1745601050539,-500.0,0.00030136,2]
[358981653,1745601050550,-882.4,0.00030136,2]
[358981654,1745601050559,-500.0,0.00030136,2]
[358981655,1745601050569,-664.18,0.00030136,2]
[358981656,1745601050578,-4308.24,0.00030136,2]
[358981657,1745601050588,-570.16558119,0.00030136,2]
[358981658,1745601050597,-835.5,0.00030136,2]
[358981659,1745601050607,-500.0,0.00030136,2]
[358981660,1745601050617,-625.83293023,0.00030136,2]
[358981661,1745601050627,-1122.72,0.00030136,2]
[358981662,1745601050636,-500.0,0.00030136,2]
[358981663,1745601050646,-238.12395404,0.00030136,2]
[358981664,1745601050655,-12838.45,0.00030136,2]
[358981665,1745601050665,-500.0,0.00030136,2]
[358981666,1745601050675,-500.0,0.00030136,2]
[358981667,1745601050686,-500.0,0.00030136,2]
[358981668,1745601050695,-500.0,0.00030136,2]
[358981669,1745601050706,-500.0,0.00030136,2]
[358981670,1745601050716,-500.0,0.00030136,2]
[358981671,1745601050727,-405.29911127,0.00030136,2]
[358981672,1745601050738,-902.67,0.00030136,2]
[358981673,1745601050747,-500.0,0.00030136,2]
[358981674,1745601050758,-500.0,0.00030136,2]
[358981675,1745601050768,-608.22,0.00030136,2]
[358981676,1745601050777,-500.0,0.00030136,2]
[358981677,1745601050786,-858.84,0.00030136,2]
[358981678,1745601050796,-793.54,0.00030136,2]
[358981679,1745601050805,-1057.06,0.00030136,2]
[358981680,1745601050816,-915.02,0.00030136,2]
[358981681,1745601050827,-500.0,0.00030136,2]
[358981682,1745601050837,-544.76,0.00030136,2]
[358981683,1745601050849,-500.0,0.00030136,2]
[358981684,1745601050858,-500.0,0.00030136,2]
[358981685,1745601050867,-500.0,0.00030136,2]
[358981686,1745601050876,-500.0,0.00030136,2]
[358981687,1745601050885,-500.0,0.00030136,2]
[358981688,1745601050895,-644.96,0.00030136,2]
[358981689,1745601050904,-500.0,0.00030136,2]
[358981690,1745601050913,-1128.75,0.00030136,2]
[358981691,1745601050922,-500.0,0.00030136,2]
[358981692,1745601050932,-792.95,0.00030136,2]
[358981693,1745601050941,-1622.95,0.00030136,2]
[358981694,1745601050950,-820.87,0.00030136,2]
[358981695,1745601050959,-306.59375341,0.00030136,2]
[358981696,1745601050969,-975.51,0.00030136,2]